[Event "*** Titled Tuesday Blitz"]
[Site "Chess.com"]
[Date "2021.04.20"]
[Round "7"]
[White "Grandmaster2B"]
[Black "Loy_Konstantin"]
[Result "0-1"]
[WhiteElo "2532"]
[BlackElo "2391"]
[TimeControl "180+1"]
[EndTime "11:16:19 PDT"]
[Termination "Loy_Konstantin won by resignation"]

1. e4 {[%clk 0:03:00.9]} 1... c5 {[%clk 0:02:59.5]} 2. Nf3 {[%clk 0:03:00.8]}
2... d6 {[%clk 0:03:00]} 3. d4 {[%clk 0:03:00.7]} 3... cxd4 {[%clk 0:03:00.9]}
4. Nxd4 {[%clk 0:03:01.1]} 4... Nf6 {[%clk 0:03:01.5]} 5. Nc3 {[%clk 0:03:01.6]}
5... g6 {[%clk 0:03:02.1]} 6. Be3 {[%clk 0:02:59.5]} 6... Bg7 {[%clk 0:03:02.5]}
7. f3 {[%clk 0:03:00.1]} 7... O-O {[%clk 0:03:03.1]} 8. Qd2 {[%clk 0:03:00.7]}
8... Nc6 {[%clk 0:03:03.6]} 9. Bc4 {[%clk 0:03:00.2]} 9... Bd7 {[%clk
0:03:03.5]} 10. O-O-O {[%clk 0:02:59.8]} 10... Ne5 {[%clk 0:03:03.7]} 11. Bb3
{[%clk 0:03:00]} 11... Qa5 {[%clk 0:03:04.3]} 12. Kb1 {[%clk 0:02:59.4]} 12...
Rfc8 {[%clk 0:03:04.5]} 13. g4 {[%clk 0:02:52.2]} 13... b5 {[%clk 0:03:04.1]}
14. g5 {[%clk 0:02:48.6]} 14... b4 {[%clk 0:03:03.7]} 15. Nd5 {[%clk 0:02:39.3]}
15... Nxd5 {[%clk 0:03:03.4]} 16. Bxd5 {[%clk 0:02:40.2]} 16... Nc4 {[%clk
0:03:03.7]} 17. Qe2 {[%clk 0:02:25.4]} 17... Nxe3 {[%clk 0:02:59.2]} 18. Qxe3
{[%clk 0:02:26.3]} 18... Rab8 {[%clk 0:02:57.9]} 19. Nb3 {[%clk 0:02:22.6]}
19... Qc7 {[%clk 0:02:50.3]} 20. Nd4 {[%clk 0:02:03.9]} 20... e6 {[%clk
0:02:31.6]} 21. Bb3 {[%clk 0:01:19.6]} 21... a5 {[%clk 0:02:31.6]} 22. f4 {[%clk
0:00:42.6]} 22... a4 {[%clk 0:02:25.4]} 23. f5 {[%clk 0:00:43.5]} 23... axb3
{[%clk 0:02:16.7]} 24. cxb3 {[%clk 0:00:44.4]} 24... exf5 {[%clk 0:02:04.9]} 25.
exf5 {[%clk 0:00:43.3]} 25... Bxd4 {[%clk 0:01:52.3]} 26. Qxd4 {[%clk
0:00:42.6]} 26... Bxf5+ {[%clk 0:01:52.6]} 27. Ka1 {[%clk 0:00:43.5]} 27... Ra8
{[%clk 0:01:45.4]} 28. Qxb4 {[%clk 0:00:42]} 28... Rxa2+ {[%clk 0:01:18.4]} 29.
Kxa2 {[%clk 0:00:42.9]} 29... Ra8+ {[%clk 0:01:18.5]} 30. Qa4 {[%clk 0:00:36.1]}
30... Rxa4+ {[%clk 0:01:17.2]} 31. bxa4 {[%clk 0:00:37]} 31... Qc4+ {[%clk
0:01:08.7]} 32. b3 {[%clk 0:00:37]} 32... Qc2+ {[%clk 0:01:06.1]} 33. Ka3 {[%clk
0:00:36.7]} 33... Be6 {[%clk 0:01:01.4]} 34. Rb1 {[%clk 0:00:36.6]} 34... Qc5+
{[%clk 0:00:58.9]} 35. Ka2 {[%clk 0:00:30.5]} 35... Qxg5 {[%clk 0:00:51.1]} 36.
Rhe1 {[%clk 0:00:26.7]} 36... Qa5 {[%clk 0:00:47.8]} 37. Re4 {[%clk 0:00:23.7]}
37... Bf5 {[%clk 0:00:44.6]} 38. Re8+ {[%clk 0:00:24.6]} 38... Kg7 {[%clk
0:00:44.6]} 39. Rd1 {[%clk 0:00:22.4]} 39... Qb4 {[%clk 0:00:37.4]} 40. Rd5
{[%clk 0:00:17.3]} 40... Be6 {[%clk 0:00:32.5]} 41. Rb5 {[%clk 0:00:18.2]} 41...
Qxa4+ {[%clk 0:00:29.8]} 0-1

[Event "*** Titled Tuesday Blitz"]
[Site "Chess.com"]
[Date "2021.04.20"]
[Round "7"]
[White "anon481216"]
[Black "emperor87"]
[Result "0-1"]
[WhiteElo "2551"]
[BlackElo "2697"]
[TimeControl "180+1"]
[EndTime "11:16:22 PDT"]
[Termination "emperor87 won by checkmate"]

1. d4 {[%clk 0:03:00.9]} 1... d5 {[%clk 0:02:59.7]} 2. c4 {[%clk 0:03:00.8]}
2... e6 {[%clk 0:02:58.9]} 3. Nf3 {[%clk 0:03:00.9]} 3... Nf6 {[%clk 0:02:59.1]}
4. g3 {[%clk 0:03:01.3]} 4... a6 {[%clk 0:02:56.8]} 5. Bg2 {[%clk 0:02:48.1]}
5... dxc4 {[%clk 0:02:55.1]} 6. O-O {[%clk 0:02:46.1]} 6... Nc6 {[%clk
0:02:54.4]} 7. e3 {[%clk 0:02:45.3]} 7... Rb8 {[%clk 0:02:53.5]} 8. Nfd2 {[%clk
0:02:21.7]} 8... Bd6 {[%clk 0:02:41.8]} 9. Nxc4 {[%clk 0:02:21.4]} 9... O-O
{[%clk 0:02:40.7]} 10. Nc3 {[%clk 0:02:20.4]} 10... Bd7 {[%clk 0:02:39.6]} 11.
e4 {[%clk 0:02:14.5]} 11... b5 {[%clk 0:02:39.1]} 12. Nxd6 {[%clk 0:02:11.3]}
12... cxd6 {[%clk 0:02:39.6]} 13. d5 {[%clk 0:02:11.1]} 13... Ne5 {[%clk
0:02:18.3]} 14. dxe6 {[%clk 0:02:04.3]} 14... Bxe6 {[%clk 0:02:19.2]} 15. Bf4
{[%clk 0:01:56.6]} 15... b4 {[%clk 0:02:17.6]} 16. Nd5 {[%clk 0:01:55]} 16...
Bxd5 {[%clk 0:02:13.6]} 17. exd5 {[%clk 0:01:55]} 17... Nfd7 {[%clk 0:02:13.8]}
18. Re1 {[%clk 0:01:50.9]} 18... Qa5 {[%clk 0:02:12.8]} 19. a3 {[%clk 0:01:33]}
19... b3 {[%clk 0:02:07]} 20. Qd4 {[%clk 0:01:25.6]} 20... f6 {[%clk 0:02:02.5]}
21. Bd2 {[%clk 0:00:55.4]} 21... Qc5 {[%clk 0:02:01.9]} 22. Bc3 {[%clk
0:00:50.3]} 22... Qxd4 {[%clk 0:01:40.8]} 23. Bxd4 {[%clk 0:00:50.3]} 23... g5
{[%clk 0:01:36.9]} 24. f4 {[%clk 0:00:48.4]} 24... gxf4 {[%clk 0:01:35.6]} 25.
gxf4 {[%clk 0:00:48.7]} 25... Nd3 {[%clk 0:01:35.1]} 26. Re7 {[%clk 0:00:43.9]}
26... Rf7 {[%clk 0:01:31]} 27. Rxf7 {[%clk 0:00:37.8]} 27... Kxf7 {[%clk
0:01:29.9]} 28. Bh3 {[%clk 0:00:37.2]} 28... N7c5 {[%clk 0:01:28.1]} 29. Rf1
{[%clk 0:00:33.7]} 29... Re8 {[%clk 0:01:25.3]} 30. Bf5 {[%clk 0:00:32.7]} 30...
Re2 {[%clk 0:01:18.8]} 31. Bxh7 {[%clk 0:00:30.2]} 31... Nxb2 {[%clk 0:01:18.1]}
32. h4 {[%clk 0:00:29.6]} 32... Rd2 {[%clk 0:01:10.5]} 33. Bc3 {[%clk
0:00:28.8]} 33... Re2 {[%clk 0:01:07.1]} 34. h5 {[%clk 0:00:28.8]} 34... Nc4
{[%clk 0:01:05.1]} 35. Kh1 {[%clk 0:00:22.9]} 35... Ne4 {[%clk 0:01:01.6]} 36.
Bg6+ {[%clk 0:00:20.4]} 36... Kg7 {[%clk 0:01:00.3]} 37. Rg1 {[%clk 0:00:16]}
37... Nxc3 {[%clk 0:00:58.6]} 38. Bd3+ {[%clk 0:00:16.2]} 38... Kh6 {[%clk
0:00:58.8]} 39. Bxc4 {[%clk 0:00:16.4]} 39... Re4 {[%clk 0:00:54.9]} 40. Bxb3
{[%clk 0:00:15.9]} 40... Kxh5 {[%clk 0:00:52.5]} 41. f5 {[%clk 0:00:14.7]} 41...
Re5 {[%clk 0:00:49.9]} 42. Rg3 {[%clk 0:00:12.2]} 42... Nxd5 {[%clk 0:00:49.1]}
43. Bd1+ {[%clk 0:00:11]} 43... Kh4 {[%clk 0:00:49]} 44. Rg4+ {[%clk 0:00:11.2]}
44... Kh3 {[%clk 0:00:48.6]} 45. Rd4 {[%clk 0:00:11.3]} 45... Re1# {[%clk
0:00:47.8]} 0-1

[Event "*** Titled Tuesday Blitz"]
[Site "Chess.com"]
[Date "2021.04.20"]
[Round "7"]
[White "buhomurciano"]
[Black "Serly25"]
[Result "1-0"]
[WhiteElo "2193"]
[BlackElo "1950"]
[TimeControl "180+1"]
[EndTime "11:16:25 PDT"]
[Termination "buhomurciano won on time"]

1. e4 {[%clk 0:03:00.9]} 1... e6 {[%clk 0:02:59.5]} 2. d3 {[%clk 0:02:58]} 2...
d5 {[%clk 0:02:59.4]} 3. Qe2 {[%clk 0:02:57.2]} 3... dxe4 {[%clk 0:02:48.2]} 4.
dxe4 {[%clk 0:02:57]} 4... Nf6 {[%clk 0:02:47]} 5. c3 {[%clk 0:02:52.8]} 5... c5
{[%clk 0:02:43.2]} 6. Qc2 {[%clk 0:02:40.2]} 6... Nc6 {[%clk 0:02:38.4]} 7. Nf3
{[%clk 0:02:38.5]} 7... e5 {[%clk 0:02:33.5]} 8. Bc4 {[%clk 0:02:31.1]} 8... Be7
{[%clk 0:02:31.7]} 9. Nbd2 {[%clk 0:02:26.9]} 9... O-O {[%clk 0:02:30.8]} 10. a4
{[%clk 0:02:26.5]} 10... Qc7 {[%clk 0:02:23.4]} 11. Nf1 {[%clk 0:02:24.6]} 11...
Bg4 {[%clk 0:02:19.9]} 12. Bg5 {[%clk 0:02:22.8]} 12... a6 {[%clk 0:02:17.4]}
13. Ne3 {[%clk 0:02:15.2]} 13... Bh5 {[%clk 0:02:08.3]} 14. Bxf6 {[%clk
0:02:11.4]} 14... Bxf6 {[%clk 0:02:06.1]} 15. Nd5 {[%clk 0:02:11.5]} 15... Qd8
{[%clk 0:00:59.3]} 16. Rd1 {[%clk 0:02:07.9]} 16... Rb8 {[%clk 0:00:51.7]} 17.
Ba2 {[%clk 0:01:44.4]} 17... b5 {[%clk 0:00:50.2]} 18. axb5 {[%clk 0:01:42.8]}
18... axb5 {[%clk 0:00:50.3]} 19. Ne3 {[%clk 0:01:36.5]} 19... Qc7 {[%clk
0:00:45.3]} 20. g4 {[%clk 0:01:26.3]} 20... Bg6 {[%clk 0:00:44.6]} 21. h4 {[%clk
0:01:20.8]} 21... h6 {[%clk 0:00:25.5]} 22. g5 {[%clk 0:01:15.9]} 22... hxg5
{[%clk 0:00:24.4]} 23. hxg5 {[%clk 0:01:16.8]} 23... Be7 {[%clk 0:00:21.9]} 24.
Nh4 {[%clk 0:01:11.5]} 24... Bxg5 {[%clk 0:00:18.7]} 25. Nxg6 {[%clk 0:01:09]}
25... Bh6 {[%clk 0:00:05.8]} 26. Nf5 {[%clk 0:01:02.8]} 26... Rfd8 {[%clk
0:00:02.7]} 27. Rxd8+ {[%clk 0:00:56.4]} 27... Rxd8 {[%clk 0:00:03.6]} 28. Nxh6+
{[%clk 0:00:41.4]} 28... gxh6 {[%clk 0:00:04.5]} 29. Nh4 {[%clk 0:00:36.3]}
29... c4 {[%clk 0:00:04]} 30. Nf5 {[%clk 0:00:32.9]} 30... Qd7 {[%clk
0:00:02.4]} 31. Qe2 {[%clk 0:00:27.4]} 31... Qe6 {[%clk 0:00:01.8]} 32. Rxh6
{[%clk 0:00:25.2]} 1-0

[Event "*** Titled Tuesday Blitz"]
[Site "Chess.com"]
[Date "2021.04.20"]
[Round "7"]
[White "atwalcb"]
[Black "MatyChess1"]
[Result "0-1"]
[WhiteElo "2452"]
[BlackElo "2643"]
[TimeControl "180+1"]
[EndTime "11:16:27 PDT"]
[Termination "MatyChess1 won by checkmate"]

1. d4 {[%clk 0:03:00.9]} 1... d5 {[%clk 0:02:53.7]} 2. c4 {[%clk 0:03:00.8]}
2... e6 {[%clk 0:02:54]} 3. Nc3 {[%clk 0:03:01.2]} 3... Bb4 {[%clk 0:02:54]} 4.
Nf3 {[%clk 0:02:55.9]} 4... dxc4 {[%clk 0:02:53.7]} 5. e3 {[%clk 0:02:51.4]}
5... b5 {[%clk 0:02:53.7]} 6. Ne5 {[%clk 0:02:51.6]} 6... Bb7 {[%clk 0:02:52.6]}
7. a4 {[%clk 0:02:50.5]} 7... a6 {[%clk 0:02:51.1]} 8. Be2 {[%clk 0:02:46.8]}
8... Nf6 {[%clk 0:02:23.2]} 9. Bf3 {[%clk 0:02:43.4]} 9... c6 {[%clk 0:02:16.9]}
10. O-O {[%clk 0:02:39.1]} 10... Qb6 {[%clk 0:02:05.4]} 11. Ne4 {[%clk
0:02:24.1]} 11... Nbd7 {[%clk 0:02:00.5]} 12. Bd2 {[%clk 0:02:12.9]} 12... Be7
{[%clk 0:01:59.5]} 13. Nxf7 {[%clk 0:01:47.7]} 13... Kxf7 {[%clk 0:01:57.7]} 14.
Ng5+ {[%clk 0:01:48.1]} 14... Kg8 {[%clk 0:01:57.6]} 15. Nxe6 {[%clk 0:01:49]}
15... c5 {[%clk 0:01:49.6]} 16. a5 {[%clk 0:01:39.5]} 16... Qa7 {[%clk
0:01:40.3]} 17. d5 {[%clk 0:01:37.4]} 17... Nxd5 {[%clk 0:01:26.3]} 18. Qc2
{[%clk 0:01:28.6]} 18... Ne5 {[%clk 0:01:18.9]} 19. Be4 {[%clk 0:01:20.4]} 19...
Nf6 {[%clk 0:01:12.8]} 20. Bxb7 {[%clk 0:01:15.6]} 20... Qxb7 {[%clk 0:01:13.7]}
21. f4 {[%clk 0:01:15.8]} 21... Nd3 {[%clk 0:01:11.8]} 22. Bc3 {[%clk
0:01:15.5]} 22... Ne4 {[%clk 0:00:59.8]} 23. Bxg7 {[%clk 0:01:14]} 23... Qd7
{[%clk 0:00:55.6]} 24. Bxh8 {[%clk 0:01:12.8]} 24... Kxh8 {[%clk 0:00:54.2]} 25.
f5 {[%clk 0:01:12.5]} 25... Rg8 {[%clk 0:00:53.8]} 26. Qe2 {[%clk 0:01:10.2]}
26... Bf6 {[%clk 0:00:49.7]} 27. Qf3 {[%clk 0:01:04.6]} 27... Ng5 {[%clk
0:00:43.5]} 28. Nxg5 {[%clk 0:01:02.3]} 28... Bxg5 {[%clk 0:00:43.3]} 29. f6
{[%clk 0:01:02.7]} 29... Qf7 {[%clk 0:00:42.6]} 30. Qf5 {[%clk 0:00:27.7]} 30...
Bxe3+ {[%clk 0:00:37.5]} 31. Kh1 {[%clk 0:00:27.7]} 31... Qg6 {[%clk 0:00:37.2]}
32. Qf3 {[%clk 0:00:21.6]} 32... Bd4 {[%clk 0:00:36.2]} 33. f7 {[%clk
0:00:20.3]} 33... Rf8 {[%clk 0:00:36.7]} 34. Qd5 {[%clk 0:00:16.5]} 34... Nf2+
{[%clk 0:00:30.9]} 35. Kg1 {[%clk 0:00:08]} 35... Ng4+ {[%clk 0:00:26.8]} 36.
Kh1 {[%clk 0:00:08.2]} 36... Ne3 {[%clk 0:00:27.5]} 37. Qd7 {[%clk 0:00:06.6]}
37... Qxg2# {[%clk 0:00:27]} 0-1

[Event "*** Titled Tuesday Blitz"]
[Site "Chess.com"]
[Date "2021.04.20"]
[Round "7"]
[White "bricolageur"]
[Black "Oligan22"]
[Result "1-0"]
[WhiteElo "2371"]
[BlackElo "2481"]
[TimeControl "180+1"]
[EndTime "11:16:27 PDT"]
[Termination "bricolageur won by checkmate"]

1. e4 {[%clk 0:03:00.9]} 1... c6 {[%clk 0:03:00.1]} 2. d4 {[%clk 0:03:00.8]}
2... d5 {[%clk 0:03:01]} 3. e5 {[%clk 0:03:01.4]} 3... Bf5 {[%clk 0:03:00.8]} 4.
h4 {[%clk 0:03:01.8]} 4... h5 {[%clk 0:03:00.3]} 5. c4 {[%clk 0:03:02.4]} 5...
e6 {[%clk 0:03:00.1]} 6. Nc3 {[%clk 0:03:02.2]} 6... Nd7 {[%clk 0:02:59.6]} 7.
cxd5 {[%clk 0:03:01.1]} 7... cxd5 {[%clk 0:02:58.4]} 8. Bd3 {[%clk 0:03:01.7]}
8... Bxd3 {[%clk 0:02:53.2]} 9. Qxd3 {[%clk 0:03:02.6]} 9... Ne7 {[%clk
0:02:49.7]} 10. Bg5 {[%clk 0:03:00.9]} 10... Qb6 {[%clk 0:02:46.4]} 11. Nf3
{[%clk 0:03:01.1]} 11... Nf5 {[%clk 0:02:43.7]} 12. Nxd5 {[%clk 0:03:01.1]}
12... Qa5+ {[%clk 0:02:07.7]} 13. Nc3 {[%clk 0:03:00.7]} 13... Be7 {[%clk
0:02:08.1]} 14. Bxe7 {[%clk 0:02:54.3]} 14... Nxe7 {[%clk 0:02:06.2]} 15. O-O
{[%clk 0:02:53.2]} 15... Nb6 {[%clk 0:02:05.6]} 16. Nb5 {[%clk 0:02:38.4]} 16...
O-O {[%clk 0:02:02.9]} 17. Nd6 {[%clk 0:02:33.1]} 17... Qd5 {[%clk 0:02:02.5]}
18. Ng5 {[%clk 0:02:31.1]} 18... g6 {[%clk 0:01:50.6]} 19. Nge4 {[%clk
0:02:24.6]} 19... Kg7 {[%clk 0:01:42.1]} 20. Nf6 {[%clk 0:02:24.7]} 20... Qa5
{[%clk 0:01:33.3]} 21. Qg3 {[%clk 0:01:43.6]} 21... Kh8 {[%clk 0:01:26.7]} 22.
Qg5 {[%clk 0:01:35.7]} 22... Ng8 {[%clk 0:01:26.8]} 23. Rfc1 {[%clk 0:00:28.5]}
23... Nd5 {[%clk 0:01:24.8]} 24. Rc5 {[%clk 0:00:23.1]} 24... Qb4 {[%clk
0:01:18.1]} 25. Nxd5 {[%clk 0:00:22.6]} 25... exd5 {[%clk 0:00:48.4]} 26. Rxd5
{[%clk 0:00:17.7]} 26... Qxb2 {[%clk 0:00:48.7]} 27. Rc1 {[%clk 0:00:16.7]}
27... Qxa2 {[%clk 0:00:47.8]} 28. Rdc5 {[%clk 0:00:14.7]} 28... b6 {[%clk
0:00:31.2]} 29. Rc7 {[%clk 0:00:14.8]} 29... Rad8 {[%clk 0:00:25]} 30. Rb7
{[%clk 0:00:13.7]} 30... Kg7 {[%clk 0:00:19.9]} 31. Rcc7 {[%clk 0:00:13.5]}
31... Rxd6 {[%clk 0:00:12.9]} 32. exd6 {[%clk 0:00:14.4]} 32... Qe6 {[%clk
0:00:10.9]} 33. Qe5+ {[%clk 0:00:13.6]} 33... Kh6 {[%clk 0:00:07.3]} 34. Qxe6
{[%clk 0:00:13.1]} 34... fxe6 {[%clk 0:00:08.2]} 35. Rh7# {[%clk 0:00:13.6]} 1-0

[Event "*** Titled Tuesday Blitz"]
[Site "Chess.com"]
[Date "2021.04.20"]
[Round "7"]
[White "fastestmindalive"]
[Black "AlexPapasimakopoulos"]
[Result "1-0"]
[WhiteElo "2760"]
[BlackElo "2603"]
[TimeControl "180+1"]
[EndTime "11:16:29 PDT"]
[Termination "fastestmindalive won by checkmate"]

1. e4 {[%clk 0:03:00.9]} 1... e6 {[%clk 0:03:00.2]} 2. d4 {[%clk 0:03:00.6]}
2... d5 {[%clk 0:02:56.8]} 3. Nc3 {[%clk 0:03:00.5]} 3... Bb4 {[%clk 0:02:55.2]}
4. a3 {[%clk 0:03:00.3]} 4... Bxc3+ {[%clk 0:02:54.3]} 5. bxc3 {[%clk
0:03:01.2]} 5... dxe4 {[%clk 0:02:54.3]} 6. Qg4 {[%clk 0:03:01.1]} 6... Nf6
{[%clk 0:02:55]} 7. Qxg7 {[%clk 0:03:01.1]} 7... Rg8 {[%clk 0:02:55.5]} 8. Qh6
{[%clk 0:03:01.2]} 8... Rg6 {[%clk 0:02:56.1]} 9. Qh4 {[%clk 0:03:00.6]} 9... c5
{[%clk 0:02:55.8]} 10. Ne2 {[%clk 0:02:54.7]} 10... Qa5 {[%clk 0:02:53.7]} 11.
Bg5 {[%clk 0:02:53.5]} 11... Nbd7 {[%clk 0:02:50.3]} 12. dxc5 {[%clk 0:02:47.4]}
12... Qxc5 {[%clk 0:02:47.1]} 13. Be3 {[%clk 0:02:47.5]} 13... Qa5 {[%clk
0:02:43.7]} 14. g3 {[%clk 0:02:46.6]} 14... Ne5 {[%clk 0:02:38]} 15. Bg2 {[%clk
0:02:46.7]} 15... Nf3+ {[%clk 0:02:38.3]} 16. Bxf3 {[%clk 0:02:47]} 16... exf3
{[%clk 0:02:39.2]} 17. Nc1 {[%clk 0:02:06.4]} 17... Qxc3+ {[%clk 0:02:36.4]} 18.
Kd1 {[%clk 0:02:05.8]} 18... Qxa1 {[%clk 0:02:33.1]} 19. Bd4 {[%clk 0:02:06.3]}
19... Qxa3 {[%clk 0:02:20.5]} 20. Bxf6 {[%clk 0:02:05]} 20... Bd7 {[%clk
0:02:06.9]} 21. Re1 {[%clk 0:01:59]} 21... Rc8 {[%clk 0:01:49.8]} 22. Re3 {[%clk
0:01:56.1]} 22... Qa4 {[%clk 0:01:44]} 23. Qxa4 {[%clk 0:01:43.1]} 23... Bxa4
{[%clk 0:01:44.9]} 24. Bc3 {[%clk 0:01:41.9]} 24... Rg5 {[%clk 0:01:32.8]} 25.
Kd2 {[%clk 0:01:30.1]} 25... Rf5 {[%clk 0:01:19.2]} 26. Nd3 {[%clk 0:01:25.4]}
26... Rd8 {[%clk 0:01:14.5]} 27. Kc1 {[%clk 0:01:20.1]} 27... Bb5 {[%clk
0:01:12.1]} 28. Ne5 {[%clk 0:01:17.5]} 28... Be2 {[%clk 0:01:10.8]} 29. Re4
{[%clk 0:01:11.1]} 29... Rd1+ {[%clk 0:01:06.1]} 30. Kb2 {[%clk 0:01:10.1]}
30... f6 {[%clk 0:00:57.6]} 31. Ng4 {[%clk 0:01:07.2]} 31... Ke7 {[%clk
0:00:54.5]} 32. Ne3 {[%clk 0:00:59.7]} 32... Rb5+ {[%clk 0:00:51]} 33. Bb4+
{[%clk 0:00:59.4]} 33... Rd6 {[%clk 0:00:26.7]} 34. Kc1 {[%clk 0:00:48.1]} 34...
Rxb4 {[%clk 0:00:26.3]} 35. Rxb4 {[%clk 0:00:46.6]} 35... b6 {[%clk 0:00:25.3]}
36. Rh4 {[%clk 0:00:46.3]} 36... a5 {[%clk 0:00:23.4]} 37. Rxh7+ {[%clk
0:00:46]} 37... Kf8 {[%clk 0:00:23.5]} 38. Ra7 {[%clk 0:00:45.7]} 38... e5
{[%clk 0:00:20.3]} 39. h4 {[%clk 0:00:43.1]} 39... e4 {[%clk 0:00:17.8]} 40. h5
{[%clk 0:00:42.1]} 40... f5 {[%clk 0:00:18.3]} 41. Nxf5 {[%clk 0:00:38.3]} 41...
Rd1+ {[%clk 0:00:18.7]} 42. Kb2 {[%clk 0:00:38.5]} 42... Rf1 {[%clk 0:00:19.6]}
43. h6 {[%clk 0:00:36.2]} 43... Rxf2 {[%clk 0:00:20.1]} 44. h7 {[%clk
0:00:36.4]} 44... Rh2 {[%clk 0:00:20.8]} 45. Nh4 {[%clk 0:00:36.2]} 45... Rxh4
{[%clk 0:00:16.4]} 46. gxh4 {[%clk 0:00:37.1]} 46... f2 {[%clk 0:00:17.3]} 47.
h8=Q# {[%clk 0:00:37]} 1-0

[Event "*** Titled Tuesday Blitz"]
[Site "Chess.com"]
[Date "2021.04.20"]
[Round "7"]
[White "Sergey85Rodchenkov"]
[Black "blitzking1729"]
[Result "0-1"]
[WhiteElo "2504"]
[BlackElo "2648"]
[TimeControl "180+1"]
[EndTime "11:16:29 PDT"]
[Termination "blitzking1729 won by resignation"]

1. e4 {[%clk 0:03:00.9]} 1... c5 {[%clk 0:02:57.1]} 2. Nf3 {[%clk 0:02:59.9]}
2... e6 {[%clk 0:02:57.1]} 3. d3 {[%clk 0:02:59.9]} 3... Nc6 {[%clk 0:02:54.1]}
4. g3 {[%clk 0:02:59.5]} 4... g6 {[%clk 0:02:54]} 5. Bg2 {[%clk 0:02:59.8]} 5...
Bg7 {[%clk 0:02:54.4]} 6. O-O {[%clk 0:03:00]} 6... Nge7 {[%clk 0:02:55]} 7. Re1
{[%clk 0:02:59.8]} 7... O-O {[%clk 0:02:55]} 8. c4 {[%clk 0:02:46]} 8... d5
{[%clk 0:02:53.9]} 9. exd5 {[%clk 0:02:41]} 9... exd5 {[%clk 0:02:53.2]} 10. Nc3
{[%clk 0:02:40.9]} 10... dxc4 {[%clk 0:02:51.3]} 11. dxc4 {[%clk 0:02:40.6]}
11... Qxd1 {[%clk 0:02:51]} 12. Rxd1 {[%clk 0:02:40.1]} 12... Bg4 {[%clk
0:02:50.4]} 13. h3 {[%clk 0:02:38.7]} 13... Be6 {[%clk 0:02:48.5]} 14. Be3
{[%clk 0:02:29.6]} 14... b6 {[%clk 0:02:41.6]} 15. Rac1 {[%clk 0:02:03.3]} 15...
Rad8 {[%clk 0:02:34.5]} 16. b3 {[%clk 0:01:47.7]} 16... Nf5 {[%clk 0:02:27.4]}
17. Rxd8 {[%clk 0:01:41.5]} 17... Rxd8 {[%clk 0:02:26.2]} 18. Bg5 {[%clk
0:01:40.8]} 18... Rd3 {[%clk 0:02:17]} 19. Nd5 {[%clk 0:01:36.3]} 19... h6
{[%clk 0:02:10.9]} 20. Bf4 {[%clk 0:01:28]} 20... Ncd4 {[%clk 0:02:06.3]} 21.
Nxd4 {[%clk 0:01:24.8]} 21... Bxd4 {[%clk 0:02:03.3]} 22. g4 {[%clk 0:01:14.7]}
22... Nh4 {[%clk 0:01:59.4]} 23. Bxh6 {[%clk 0:01:06.1]} 23... Rg3 {[%clk
0:01:43.8]} 24. Nf4 {[%clk 0:00:37]} 24... Kh7 {[%clk 0:01:19.5]} 25. Bg5 {[%clk
0:00:36.1]} 25... Rxg2+ {[%clk 0:01:18.4]} 26. Nxg2 {[%clk 0:00:35.5]} 26...
Nf3+ {[%clk 0:01:18.3]} 27. Kf1 {[%clk 0:00:35.9]} 27... Nxg5 {[%clk 0:01:18.4]}
28. Ne3 {[%clk 0:00:36]} 28... Nxh3 {[%clk 0:01:16.8]} 29. Ke2 {[%clk
0:00:36.2]} 29... Nf4+ {[%clk 0:01:14.9]} 30. Kf3 {[%clk 0:00:36.4]} 30... g5
{[%clk 0:01:14.7]} 31. Nf5 {[%clk 0:00:34.4]} 31... Bxf5 {[%clk 0:01:09]} 32.
gxf5 {[%clk 0:00:33.3]} 32... Kg7 {[%clk 0:01:09.3]} 33. Re1 {[%clk 0:00:32]}
33... Kf8 {[%clk 0:01:05.6]} 34. Kg4 {[%clk 0:00:29.7]} 34... Nd3 {[%clk
0:00:59.9]} 35. Re2 {[%clk 0:00:23.1]} 35... Bf6 {[%clk 0:00:52.7]} 36. Rd2
{[%clk 0:00:20.5]} 36... Ne5+ {[%clk 0:00:52.1]} 37. Kg3 {[%clk 0:00:20.3]}
37... Nc6 {[%clk 0:00:50.9]} 38. f4 {[%clk 0:00:19.6]} 38... Nd4 {[%clk
0:00:47.1]} 39. Kg4 {[%clk 0:00:19]} 39... gxf4 {[%clk 0:00:46.4]} 40. Kxf4
{[%clk 0:00:19.1]} 40... Bg5+ {[%clk 0:00:46.2]} 41. Kxg5 {[%clk 0:00:18.6]}
41... Nf3+ {[%clk 0:00:45.8]} 42. Kf4 {[%clk 0:00:18.6]} 42... Nxd2 {[%clk
0:00:46.1]} 43. Ke5 {[%clk 0:00:19.5]} 43... Ke7 {[%clk 0:00:45.8]} 44. Kd5
{[%clk 0:00:20]} 44... Kd7 {[%clk 0:00:45.8]} 0-1

[Event "*** Titled Tuesday Blitz"]
[Site "Chess.com"]
[Date "2021.04.20"]
[Round "7"]
[White "Grandelicious"]
[Black "draksbg"]
[Result "0-1"]
[WhiteElo "2814"]
[BlackElo "2571"]
[TimeControl "180+1"]
[EndTime "11:16:31 PDT"]
[Termination "draksbg won on time"]

1. d4 {[%clk 0:03:00.9]} 1... Nf6 {[%clk 0:02:58.9]} 2. Nf3 {[%clk 0:03:01]}
2... g6 {[%clk 0:02:58.6]} 3. Nbd2 {[%clk 0:03:01.4]} 3... d5 {[%clk 0:02:56.9]}
4. e3 {[%clk 0:02:59.4]} 4... Bg7 {[%clk 0:02:56.6]} 5. b4 {[%clk 0:03:00]} 5...
a5 {[%clk 0:02:54.5]} 6. b5 {[%clk 0:03:00.4]} 6... c6 {[%clk 0:02:51.6]} 7.
bxc6 {[%clk 0:03:01.3]} 7... Nxc6 {[%clk 0:02:51.1]} 8. Be2 {[%clk 0:02:57.2]}
8... O-O {[%clk 0:02:50.6]} 9. O-O {[%clk 0:02:57.3]} 9... Bf5 {[%clk
0:02:22.7]} 10. c3 {[%clk 0:02:57.2]} 10... Rc8 {[%clk 0:02:19.6]} 11. Ba3
{[%clk 0:02:55.8]} 11... Re8 {[%clk 0:02:16.3]} 12. Qb3 {[%clk 0:02:50.3]} 12...
e5 {[%clk 0:02:13.1]} 13. Qxb7 {[%clk 0:02:27]} 13... e4 {[%clk 0:02:12.1]} 14.
Ne1 {[%clk 0:02:27.1]} 14... Rb8 {[%clk 0:02:06.3]} 15. Qxc6 {[%clk 0:02:24.8]}
15... Bd7 {[%clk 0:01:52.7]} 16. Qa6 {[%clk 0:01:34.5]} 16... Re6 {[%clk
0:01:46.6]} 17. Qa7 {[%clk 0:01:22.5]} 17... Ra8 {[%clk 0:01:45.4]} 18. Qb7
{[%clk 0:01:19.7]} 18... Rb6 {[%clk 0:01:30.9]} 19. Be7 {[%clk 0:01:08.5]} 19...
Rxb7 {[%clk 0:01:30.7]} 20. Bxd8 {[%clk 0:01:08.3]} 20... Rxd8 {[%clk
0:01:31.6]} 21. Nc2 {[%clk 0:00:57]} 21... Ba4 {[%clk 0:01:03.9]} 22. Rfc1
{[%clk 0:00:42.2]} 22... Bf8 {[%clk 0:00:46.2]} 23. c4 {[%clk 0:00:39.5]} 23...
dxc4 {[%clk 0:00:46.1]} 24. Nxc4 {[%clk 0:00:32.4]} 24... Rc7 {[%clk 0:00:41.4]}
25. Rab1 {[%clk 0:00:17.3]} 25... Rdc8 {[%clk 0:00:37.2]} 26. Ne1 {[%clk
0:00:16.8]} 26... Ba3 {[%clk 0:00:32.1]} 27. Rc2 {[%clk 0:00:05.3]} 27... Bxc2
{[%clk 0:00:28.6]} 28. Nxc2 {[%clk 0:00:06.2]} 28... Be7 {[%clk 0:00:20.7]} 29.
N2a3 {[%clk 0:00:02]} 29... Nd5 {[%clk 0:00:17.4]} 0-1